[Event "MCR rapid mládeže 2023 U16"]
[Site "Harachov, Czech Republic"]
[Date "2023.09.09"]
[Round "1.21"]
[White "Frantsev, Iegor"]
[Black "Vlcek, Vitezslav"]
[Result "1-0"]
[TimeControl "20min+5s/move"]
[WhiteElo "1431"]
[BlackElo "1160"]

1. d4 {[%clk 00:20:06]} {[%emt 00:00:03]} d5 {[%clk 00:20:07]} {[%emt
00:00:04]} 2. Bf4 {[%clk 00:20:09]} {[%emt 00:00:02]} Bf5 {[%clk 00:19:27]}
{[%emt 00:00:45]} 3. e3 {[%clk 00:20:12]} {[%emt 00:00:02]} e6 {[%clk
00:18:30]} {[%emt 00:01:03]} 4. c4 {[%clk 00:19:36]} {[%emt 00:00:40]} Nf6
{[%clk 00:17:28]} {[%emt 00:01:07]} 5. Nc3 {[%clk 00:19:35]} {[%emt 00:00:05]}
c5 {[%clk 00:16:48]} {[%emt 00:00:45]} 6. cxd5 {[%clk 00:17:40]} {[%emt
00:02:01]} exd5 {[%clk 00:16:00]} {[%emt 00:00:54]} 7. Bd3 {[%clk 00:15:01]}
{[%emt 00:02:42]} Be6 {[%clk 00:13:36]} {[%emt 00:02:30]} 8. Nf3 {[%clk
00:12:18]} {[%emt 00:02:48]} Nc6 {[%clk 00:12:37]} {[%emt 00:01:04]} 9. O-O
{[%clk 00:11:45]} {[%emt 00:00:38]} c4 {[%clk 00:11:41]} {[%emt 00:01:00]} 10.
Bc2 {[%clk 00:10:40]} {[%emt 00:01:10]} Be7 {[%clk 00:11:14]} {[%emt 00:00:33]}
11. Ne5 {[%clk 00:09:49]} {[%emt 00:00:56]} O-O {[%clk 00:08:11]} {[%emt
00:03:07]} 12. Nxc6 {[%clk 00:07:24]} {[%emt 00:02:30]} bxc6 {[%clk 00:08:13]}
{[%emt 00:00:03]} 13. Qe2 {[%clk 00:06:16]} {[%emt 00:01:13]} h6 {[%clk
00:06:11]} {[%emt 00:02:07]} 14. Rad1 {[%clk 00:05:53]} {[%emt 00:00:27]} Bd6
{[%clk 00:06:00]} {[%emt 00:00:18]} 15. Bxd6 {[%clk 00:05:28]} {[%emt
00:00:30]} Qxd6 {[%clk 00:06:02]} {[%emt 00:00:03]} 16. e4 {[%clk 00:04:39]}
{[%emt 00:00:53]} dxe4 {[%clk 00:04:09]} {[%emt 00:01:58]} 17. Nxe4 {[%clk
00:04:36]} {[%emt 00:00:08]} Nxe4 {[%clk 00:04:09]} {[%emt 00:00:05]} 18. Bxe4
{[%clk 00:04:19]} {[%emt 00:00:22]} Bd5 {[%clk 00:03:49]} {[%emt 00:00:25]} 19.
Bxd5 {[%clk 00:02:17]} {[%emt 00:02:08]} cxd5 {[%clk 00:03:49]} {[%emt
00:00:04]} 20. Rfe1 {[%clk 00:01:53]} {[%emt 00:00:30]} Qb6 {[%clk 00:02:46]}
{[%emt 00:01:08]} 21. Qc2 {[%clk 00:01:08]} {[%emt 00:00:48]} Rfe8 {[%clk
00:02:44]} {[%emt 00:00:09]} 22. Qc3 {[%clk 00:00:38]} {[%emt 00:00:34]} Qd6
{[%clk 00:01:43]} {[%emt 00:01:06]} 23. h3 {[%clk 00:00:26]} {[%emt 00:00:18]}
Re7 {[%clk 00:01:38]} {[%emt 00:00:10]} 24. Rxe7 Qxe7 {[%clk 00:01:42]} 25. Re1
{[%clk 00:00:34]} {[%emt 00:00:01]} Qd7 {[%clk 00:01:43]} 26. Re5 {[%clk
00:00:37]} {[%emt 00:00:04]} Re8 {[%clk 00:01:43]} {[%emt 00:00:04]} 27. Qe3
{[%clk 00:00:34]} {[%emt 00:00:05]} Rxe5 {[%clk 00:01:43]} {[%emt 00:00:09]} 28.
Qxe5 {[%clk 00:00:37]} {[%emt 00:00:01]} Qb7 {[%clk 00:01:18]} {[%emt
00:00:30]} 29. Qe2 {[%clk 00:00:28]} {[%emt 00:00:15]} Kf8 {[%clk 00:01:12]}
{[%emt 00:00:10]} 30. Qd2 {[%clk 00:00:28]} {[%emt 00:00:06]} Qa6 {[%clk
00:01:03]} {[%emt 00:00:14]} 31. Qb4+ {[%clk 00:00:28]} {[%emt 00:00:04]} Kg8
{[%clk 00:01:04]} {[%emt 00:00:05]} 32. a3 {[%clk 00:00:25]} {[%emt 00:00:08]}
Qc6 {[%clk 00:01:06]} {[%emt 00:00:03]} 33. Qb8+ {[%clk 00:00:25]} {[%emt
00:00:05]} Kh7 {[%clk 00:01:08]} {[%emt 00:00:02]} 34. Qxa7 {[%clk 00:00:28]}
{[%emt 00:00:03]} c3 {[%clk 00:01:06]} {[%emt 00:00:06]} 35. bxc3 {[%clk
00:00:25]} {[%emt 00:00:08]} Qxc3 {[%clk 00:01:09]} {[%emt 00:00:02]} 36. Qc5
{[%clk 00:00:20]} {[%emt 00:00:10]} Qb3 {[%clk 00:00:35]} {[%emt 00:00:39]} 37.
Kh2 {[%clk 00:00:23]} {[%emt 00:00:03]} f6 {[%clk 00:00:36]} {[%emt 00:00:05]}
38. Qb4 {[%clk 00:00:23]} {[%emt 00:00:03]} Qd3 {[%clk 00:00:38]} {[%emt
00:00:04]} 39. a4 {[%clk 00:00:23]} {[%emt 00:00:05]} Qe2 {[%clk 00:00:36]}
{[%emt 00:00:06]} 40. f3 {[%clk 00:00:22]} {[%emt 00:00:06]} Qa6 {[%clk
00:00:33]} {[%emt 00:00:09]} 41. Qb5 {[%clk 00:00:25]} {[%emt 00:00:02]} Qa8
{[%clk 00:00:35]} {[%emt 00:00:03]} 42. a5 {[%clk 00:00:27]} {[%emt 00:00:03]}
Qd8 {[%clk 00:00:17]} {[%emt 00:00:23]} 43. Qb6 {[%clk 00:00:20]} {[%emt
00:00:11]} Qa8 {[%clk 00:00:19]} {[%emt 00:00:03]} 44. a6 {[%clk 00:00:24]}
{[%emt 00:00:02]} Qe8 {[%clk 00:00:21]} {[%emt 00:00:02]} 45. a7 {[%clk
00:00:19]} {[%emt 00:00:12]} Qa8 {[%clk 00:00:10]} {[%emt 00:00:15]} 46. Qb8
{[%clk 00:00:21]} {[%emt 00:00:03]} Qc6 {[%clk 00:00:13]} {[%emt 00:00:02]} 47.
a8=Q {[%clk 00:00:19]} {[%emt 00:00:04]} Qc4 {[%clk 00:00:08]} {[%emt
00:00:12]} 48. Qf4 {[%clk 00:00:17]} {[%emt 00:00:07]} Qc2 {[%clk 00:00:08]}
{[%emt 00:00:05]} 49. Qxd5 {[%clk 00:00:19]} {[%emt 00:00:04]} Kh8 {[%clk
00:00:00]} {[%emt 00:00:09]} 1-0

[Event "MCR rapid mládeže 2023 U16"]
[Site "Harachov, Czech Republic"]
[Date "2023.09.09"]
[Round "1.22"]
[White "Krasovskyi, Stanislav"]
[Black "Chernyy, Andrey"]
[Result "0-1"]
[TimeControl "20min+5s/move"]
[WhiteElo "1212"]
[BlackElo "1582"]

1. e4 {[%clk 00:20:08]} e5 {[%clk 00:20:08]} {[%emt 00:00:02]} 2. Nf3 {[%clk
00:20:12]} {[%emt 00:00:02]} Nc6 {[%clk 00:20:12]} {[%emt 00:00:01]} 3. Nc3
{[%clk 00:20:16]} {[%emt 00:00:02]} Nf6 {[%clk 00:20:15]} {[%emt 00:00:01]} 4.
d4 {[%clk 00:20:19]} {[%emt 00:00:02]} exd4 {[%clk 00:19:43]} {[%emt 00:00:37]}
5. Nxd4 {[%clk 00:20:23]} {[%emt 00:00:02]} Bc5 {[%clk 00:18:54]} {[%emt
00:00:53]} 6. Nxc6 {[%clk 00:20:21]} {[%emt 00:00:07]} bxc6 {[%clk 00:18:56]}
{[%emt 00:00:03]} 7. Bg5 {[%clk 00:20:22]} {[%emt 00:00:03]} d6 {[%clk
00:18:22]} {[%emt 00:00:40]} 8. Bd3 {[%clk 00:18:24]} {[%emt 00:00:12]} h6
{[%clk 00:17:42]} {[%emt 00:02:35]} 9. Bh4 {[%clk 00:18:18]} {[%emt 00:00:12]}
O-O {[%clk 00:17:21]} {[%emt 00:00:26]} 10. O-O {[%clk 00:18:19]} {[%emt
00:00:04]} Rb8 {[%clk 00:17:02]} {[%emt 00:00:25]} 11. Na4 {[%clk 00:17:43]}
{[%emt 00:00:40]} Bb6 {[%clk 00:16:06]} {[%emt 00:01:01]} 12. Nxb6 {[%clk
00:16:23]} {[%emt 00:01:25]} Rxb6 {[%clk 00:16:06]} {[%emt 00:00:05]} 13. b3
{[%clk 00:16:22]} {[%emt 00:00:06]} Re8 {[%clk 00:15:37]} {[%emt 00:00:34]} 14.
Bc4 {[%clk 00:15:51]} {[%emt 00:00:36]} Rxe4 {[%clk 00:13:29]} {[%emt
00:02:13]} 15. Qf3 {[%clk 00:14:49]} {[%emt 00:01:05]} Rxh4 {[%clk 00:12:24]}
{[%emt 00:01:12]} 16. Rfe1 {[%clk 00:13:16]} {[%emt 00:01:35]} Ba6 {[%clk
00:11:15]} {[%emt 00:01:17]} 17. Bd3 {[%clk 00:12:40]} {[%emt 00:00:41]} Bxd3
{[%clk 00:11:04]} {[%emt 00:00:16]} 18. Qxd3 {[%clk 00:12:39]} {[%emt
00:00:05]} Rh5 {[%clk 00:10:53]} {[%emt 00:00:17]} 19. Qf3 {[%clk 00:11:44]}
{[%emt 00:00:58]} Re5 {[%clk 00:10:47]} {[%emt 00:00:13]} 20. Rxe5 {[%clk
00:11:30]} {[%emt 00:00:19]} dxe5 {[%clk 00:10:50]} {[%emt 00:00:02]} 21. Rd1
{[%clk 00:11:33]} {[%emt 00:00:01]} Qe7 {[%clk 00:10:53]} {[%emt 00:00:03]} 22.
Qf5 {[%clk 00:10:21]} {[%emt 00:01:15]} Rb8 {[%clk 00:10:45]} {[%emt 00:00:15]}
23. h3 {[%clk 00:09:36]} {[%emt 00:00:49]} Rd8 {[%clk 00:10:43]} {[%emt
00:00:07]} 24. Re1 {[%clk 00:09:39]} {[%emt 00:00:02]} e4 {[%clk 00:10:17]}
{[%emt 00:00:32]} 25. Qa5 {[%clk 00:08:33]} {[%emt 00:01:10]} Rd5 {[%clk
00:09:45]} {[%emt 00:00:37]} 26. Qxa7 {[%clk 00:08:09]} {[%emt 00:00:30]} Qd8
{[%clk 00:09:48]} {[%emt 00:00:02]} 27. Kh2 {[%clk 00:07:24]} {[%emt 00:00:48]}
Qd6+ {[%clk 00:09:36]} {[%emt 00:00:19]} 28. g3 {[%clk 00:07:14]} {[%emt
00:00:15]} Rd2 {[%clk 00:09:30]} {[%emt 00:00:11]} 29. c4 {[%clk 00:06:28]}
{[%emt 00:00:50]} c5 {[%clk 00:09:26]} {[%emt 00:00:10]} 30. Kg2 {[%clk
00:06:23]} {[%emt 00:00:10]} Qd4 {[%clk 00:08:16]} {[%emt 00:01:15]} 31. Rf1
{[%clk 00:05:40]} {[%emt 00:00:48]} e3 {[%clk 00:08:00]} {[%emt 00:00:21]} 32.
Qa8+ {[%clk 00:04:31]} {[%emt 00:01:12]} Kh7 {[%clk 00:07:58]} {[%emt
00:00:08]} 33. Qc8 {[%clk 00:03:44]} {[%emt 00:00:52]} Qe4+ {[%clk 00:07:31]}
{[%emt 00:00:33]} 34. Kh2 {[%clk 00:03:23]} {[%emt 00:00:25]} Rxf2+ {[%clk
00:07:28]} {[%emt 00:00:08]} 0-1

[Event "MCR rapid mládeže 2023 U16"]
[Site "Harachov, Czech Republic"]
[Date "2023.09.09"]
[Round "1.23"]
[White "Peskova, Sara"]
[Black "Vancakova, Veronika"]
[Result "0-1"]
[TimeControl "20min+5s/move"]
[WhiteElo "1451"]
[BlackElo "1433"]

1. e4 {[%clk 00:20:04]} {[%emt 00:00:04]} d6 {[%clk 00:20:09]} {[%emt
00:00:03]} 2. Nf3 {[%clk 00:20:03]} {[%emt 00:00:06]} Nf6 {[%clk 00:20:11]}
{[%emt 00:00:03]} 3. Nc3 {[%clk 00:19:52]} {[%emt 00:00:14]} g6 {[%clk
00:20:14]} {[%emt 00:00:04]} 4. Bc4 {[%clk 00:19:47]} {[%emt 00:00:09]} Bg7
{[%clk 00:20:02]} {[%emt 00:00:17]} 5. d3 {[%clk 00:19:45]} {[%emt 00:00:07]}
O-O {[%clk 00:19:55]} {[%emt 00:00:13]} 6. h3 {[%clk 00:19:28]} {[%emt
00:00:21]} c6 {[%clk 00:18:35]} {[%emt 00:01:26]} 7. Bg5 {[%clk 00:18:02]}
{[%emt 00:01:29]} Qb6 {[%clk 00:17:06]} {[%emt 00:01:35]} 8. Bb3 {[%clk
00:17:40]} {[%emt 00:00:27]} Nbd7 {[%clk 00:16:25]} {[%emt 00:00:47]} 9. Qe2
{[%clk 00:17:11]} {[%emt 00:00:33]} Nc5 {[%clk 00:15:03]} {[%emt 00:01:27]} 10.
e5 {[%clk 00:16:18]} {[%emt 00:00:57]} dxe5 {[%clk 00:13:24]} {[%emt 00:01:46]}
11. Nxe5 {[%clk 00:15:39]} {[%emt 00:00:44]} Nxb3 {[%clk 00:12:03]} {[%emt
00:01:26]} 12. axb3 {[%clk 00:15:32]} {[%emt 00:00:11]} Be6 {[%clk 00:10:01]}
{[%emt 00:02:07]} 13. Ra3 {[%clk 00:15:15]} {[%emt 00:00:22]} Rfd8 {[%clk
00:05:37]} {[%emt 00:04:30]} 14. Bxf6 {[%clk 00:13:39]} {[%emt 00:01:39]} Bxf6
{[%clk 00:05:28]} {[%emt 00:00:16]} 15. O-O {[%clk 00:13:28]} {[%emt 00:00:16]}
Qc5 {[%clk 00:05:13]} {[%emt 00:00:20]} 16. Re1 {[%clk 00:13:06]} {[%emt
00:00:26]} b5 {[%clk 00:01:29]} {[%emt 00:03:50]} 17. Ra5 {[%clk 00:12:20]}
{[%emt 00:00:51]} Qb6 {[%clk 00:01:15]} {[%emt 00:00:19]} 18. b4 {[%clk
00:12:01]} {[%emt 00:00:24]} Rdc8 {[%clk 00:00:45]} {[%emt 00:00:35]} 19. Ng4
{[%clk 00:08:38]} {[%emt 00:03:26]} Bg7 {[%clk 00:00:27]} {[%emt 00:00:25]} 20.
Qe3 {[%clk 00:05:44]} {[%emt 00:02:57]} Bd4 {[%clk 00:00:30]} {[%emt 00:00:03]}
21. Qf3 {[%clk 00:05:20]} {[%emt 00:00:29]} Bg7 {[%clk 00:00:11]} {[%emt
00:00:26]} 22. Qf4 {[%clk 00:03:06]} {[%emt 00:02:17]} Bd4 {[%clk 00:00:07]}
{[%emt 00:00:10]} 23. Re4 {[%clk 00:01:56]} {[%emt 00:01:15]} Bg7 {[%clk
00:00:11]} {[%emt 00:00:01]} 24. Ne5 {[%clk 00:00:58]} {[%emt 00:01:04]} Bxe5
{[%clk 00:00:08]} {[%emt 00:00:07]} 25. Qxe5 {[%clk 00:00:58]} {[%emt
00:00:05]} a6 {[%clk 00:00:10]} {[%emt 00:00:04]} 26. Ra3 {[%clk 00:00:53]}
{[%emt 00:00:09]} c5 {[%clk 00:00:11]} {[%emt 00:00:04]} 27. Rb3 {[%clk
00:00:29]} {[%emt 00:00:30]} Bxb3 {[%clk 00:00:13]} {[%emt 00:00:02]} 28. cxb3
{[%clk 00:00:29]} {[%emt 00:00:05]} e6 {[%clk 00:00:12]} {[%emt 00:00:06]} 29.
Rh4 {[%clk 00:00:09]} {[%emt 00:00:24]} Qc7 {[%clk 00:00:13]} {[%emt 00:00:05]}
30. Qxc7 Rxc7 {[%clk 00:00:17]} 31. bxc5 {[%clk 00:00:06]} {[%emt 00:00:09]}
Rxc5 {[%clk 00:00:21]} {[%emt 00:00:01]} 32. f3 {[%clk 00:00:00]} {[%emt
00:00:05]} 0-1

[Event "MCR rapid mládeže 2023 U16"]
[Site "Harachov, Czech Republic"]
[Date "2023.09.09"]
[Round "1.24"]
[White "Lackova, Lucie"]
[Black "Jenikova, Sabina"]
[Result "1-0"]
[TimeControl "20min+5s/move"]
[WhiteElo "1544"]
[BlackElo "1145"]

1. e4 {[%clk 00:20:26]} {[%emt 00:00:04]} e5 {[%clk 00:20:25]} {[%emt
00:00:06]} 2. Nf3 {[%clk 00:20:29]} {[%emt 00:00:02]} Nc6 {[%clk 00:20:27]}
{[%emt 00:00:03]} 3. d4 {[%clk 00:20:33]} {[%emt 00:00:01]} exd4 {[%clk
00:20:29]} {[%emt 00:00:03]} 4. Nxd4 {[%clk 00:20:37]} {[%emt 00:00:01]} Bc5
{[%clk 00:20:21]} {[%emt 00:00:13]} 5. Be3 {[%clk 00:20:37]} {[%emt 00:00:05]}
Nf6 {[%clk 00:20:01]} {[%emt 00:00:25]} 6. Nxc6 {[%clk 00:20:36]} {[%emt
00:00:06]} bxc6 {[%clk 00:18:57]} {[%emt 00:01:10]} 7. Bxc5 {[%clk 00:20:26]}
{[%emt 00:00:14]} Nxe4 {[%clk 00:18:42]} {[%emt 00:00:19]} 8. Qe2 {[%clk
00:20:25]} {[%emt 00:00:07]} d5 {[%clk 00:18:30]} {[%emt 00:00:17]} 9. f3
{[%clk 00:17:37]} {[%emt 00:02:52]} Qh4+ {[%clk 00:17:40]} {[%emt 00:00:54]} 10.
Bf2 {[%clk 00:17:19]} {[%emt 00:00:24]} Qf4 {[%clk 00:16:06]} {[%emt 00:01:40]}
11. Nc3 {[%clk 00:15:56]} {[%emt 00:01:29]} O-O {[%clk 00:15:03]} {[%emt
00:01:07]} 12. fxe4 {[%clk 00:15:34]} {[%emt 00:00:26]} Bg4 {[%clk 00:14:14]}
{[%emt 00:00:55]} 13. Qe3 {[%clk 00:13:40]} {[%emt 00:01:58]} Qf6 {[%clk
00:13:42]} {[%emt 00:00:37]} 14. Bd3 {[%clk 00:12:32]} {[%emt 00:01:14]} Rad8
{[%clk 00:13:27]} {[%emt 00:00:19]} 15. Qg3 {[%clk 00:10:31]} {[%emt 00:02:04]}
Bh5 {[%clk 00:12:23]} {[%emt 00:01:11]} 16. O-O {[%clk 00:10:04]} {[%emt
00:00:33]} d4 {[%clk 00:11:08]} {[%emt 00:01:20]} 17. Ne2 {[%clk 00:09:06]}
{[%emt 00:01:03]} c5 {[%clk 00:10:43]} {[%emt 00:00:31]} 18. Nf4 {[%clk
00:08:34]} {[%emt 00:00:36]} Bg6 {[%clk 00:09:57]} {[%emt 00:00:51]} 19. Nxg6
{[%clk 00:08:08]} {[%emt 00:00:31]} fxg6 {[%clk 00:09:56]} {[%emt 00:00:06]} 20.
Qxc7 {[%clk 00:07:07]} {[%emt 00:01:06]} Rc8 {[%clk 00:08:42]} {[%emt
00:01:18]} 21. Qxa7 {[%clk 00:06:24]} {[%emt 00:00:49]} Rf7 {[%clk 00:08:25]}
{[%emt 00:00:22]} 22. Bc4 {[%clk 00:06:09]} {[%emt 00:00:20]} Rcf8 {[%clk
00:07:44]} {[%emt 00:00:45]} 23. Bg3 {[%clk 00:05:09]} {[%emt 00:01:06]} Qg5
{[%clk 00:06:06]} {[%emt 00:01:43]} 24. Bxf7+ {[%clk 00:04:29]} {[%emt
00:00:44]} Kh8 {[%clk 00:05:19]} {[%emt 00:00:52]} 25. Rae1 {[%clk 00:03:32]}
{[%emt 00:01:02]} Qd8 {[%clk 00:04:35]} {[%emt 00:00:50]} 26. Be5 {[%clk
00:02:40]} {[%emt 00:00:57]} h6 {[%clk 00:03:15]} {[%emt 00:01:25]} 27. Bxg6
{[%clk 00:02:11]} {[%emt 00:00:33]} Rg8 {[%clk 00:03:11]} {[%emt 00:00:10]} 28.
Rf7 {[%clk 00:01:58]} {[%emt 00:00:17]} Qg5 {[%clk 00:02:52]} {[%emt 00:00:24]}
29. Bxg7+ {[%clk 00:01:36]} {[%emt 00:00:28]} Rxg7 {[%clk 00:02:49]} {[%emt
00:00:08]} 30. Qa8+ {[%clk 00:01:29]} {[%emt 00:00:12]} Rg8 {[%clk 00:02:32]}
{[%emt 00:00:22]} 31. Rh7# {[%clk 00:01:31]} {[%emt 00:00:02]} 1-0

[Event "MCR rapid mládeže 2023 U16"]
[Site "Harachov, Czech Republic"]
[Date "2023.09.09"]
[Round "1.25"]
[White "Kadlecova, Alena"]
[Black "Mojzisova, Barbora"]
[Result "1/2-1/2"]
[TimeControl "20min+5s/move"]
[WhiteElo "1020"]
[BlackElo "1220"]

1. e4 {[%clk 00:20:08]} {[%emt 00:00:02]} e5 {[%clk 00:20:09]} {[%emt
00:00:01]} 2. Nf3 {[%clk 00:20:10]} {[%emt 00:00:02]} Nc6 {[%clk 00:20:12]}
{[%emt 00:00:02]} 3. d4 {[%clk 00:20:14]} {[%emt 00:00:02]} exd4 {[%clk
00:20:15]} {[%emt 00:00:02]} 4. Nxd4 {[%clk 00:20:17]} {[%emt 00:00:01]} Bc5
{[%clk 00:20:17]} {[%emt 00:00:04]} 5. Nb3 {[%clk 00:20:20]} {[%emt 00:00:02]}
Bb6 {[%clk 00:20:16]} {[%emt 00:00:05]} 6. Nc3 {[%clk 00:20:24]} {[%emt
00:00:02]} d6 {[%clk 00:19:54]} {[%emt 00:00:27]} 7. a4 {[%clk 00:20:24]}
{[%emt 00:00:04]} a6 {[%clk 00:19:24]} {[%emt 00:00:36]} 8. a5 {[%clk
00:20:27]} {[%emt 00:00:02]} Ba7 {[%clk 00:19:22]} {[%emt 00:00:07]} 9. Bc4
{[%clk 00:19:55]} {[%emt 00:00:37]} Nf6 {[%clk 00:18:49]} {[%emt 00:00:37]} 10.
O-O {[%clk 00:19:38]} {[%emt 00:00:22]} O-O {[%clk 00:18:18]} {[%emt 00:00:36]}
11. Bf4 {[%clk 00:19:35]} {[%emt 00:00:07]} Bg4 {[%clk 00:18:06]} {[%emt
00:00:17]} 12. Be2 {[%clk 00:19:23]} {[%emt 00:00:16]} Bxe2 {[%clk 00:17:36]}
{[%emt 00:00:38]} 13. Qxe2 {[%clk 00:19:25]} {[%emt 00:00:02]} Re8 {[%clk
00:17:33]} {[%emt 00:00:09]} 14. Rfe1 {[%clk 00:19:16]} {[%emt 00:00:13]} Nd4
{[%clk 00:16:21]} {[%emt 00:01:13]} 15. Nxd4 {[%clk 00:19:10]} {[%emt
00:00:15]} Bxd4 {[%clk 00:16:17]} {[%emt 00:00:09]} 16. Qd3 {[%clk 00:19:00]}
{[%emt 00:00:09]} Bxc3 {[%clk 00:16:13]} {[%emt 00:00:16]} 17. Qxc3 {[%clk
00:19:03]} {[%emt 00:00:01]} Nxe4 {[%clk 00:16:02]} {[%emt 00:00:15]} 18. Qb4
{[%clk 00:18:00]} {[%emt 00:01:07]} Nc5 {[%clk 00:15:04]} {[%emt 00:01:00]} 19.
Rxe8+ {[%clk 00:17:55]} {[%emt 00:00:15]} Qxe8 {[%clk 00:15:07]} {[%emt
00:00:03]} 20. Re1 {[%clk 00:17:57]} {[%emt 00:00:02]} Qc6 {[%clk 00:14:50]}
{[%emt 00:00:15]} 21. h3 {[%clk 00:17:20]} {[%emt 00:00:48]} Kf8 {[%clk
00:14:12]} {[%emt 00:00:43]} 22. Be3 {[%clk 00:16:47]} {[%emt 00:00:36]} Re8
{[%clk 00:13:50]} {[%emt 00:00:29]} 23. Kf1 {[%clk 00:15:27]} {[%emt 00:01:22]}
f6 {[%clk 00:13:11]} {[%emt 00:00:47]} 24. Bxc5 {[%clk 00:15:18]} {[%emt
00:00:15]} Rxe1+ {[%clk 00:13:07]} {[%emt 00:00:10]} 25. Kxe1 {[%clk 00:15:19]}
{[%emt 00:00:03]} dxc5 {[%clk 00:12:45]} {[%emt 00:00:27]} 26. Qg4 {[%clk
00:14:57]} {[%emt 00:00:23]} Qe8+ {[%clk 00:11:58]} {[%emt 00:00:49]} 27. Kf1
{[%clk 00:14:12]} {[%emt 00:00:50]} Qb5+ {[%clk 00:11:54]} {[%emt 00:00:15]} 28.
Kg1 {[%clk 00:14:14]} {[%emt 00:00:04]} Qxa5 {[%clk 00:11:20]} {[%emt
00:00:39]} 29. Qc8+ {[%clk 00:14:12]} {[%emt 00:00:07]} Kf7 {[%clk 00:11:16]}
{[%emt 00:00:04]} 30. Qd7+ {[%clk 00:13:38]} {[%emt 00:00:40]} Kg6 {[%clk
00:11:01]} {[%emt 00:00:21]} 31. Qg4+ {[%clk 00:13:38]} {[%emt 00:00:07]} Kf7
{[%clk 00:10:56]} {[%emt 00:00:12]} 32. Qd7+ {[%clk 00:13:39]} {[%emt
00:00:03]} Kf8 {[%clk 00:10:20]} {[%emt 00:00:34]} 33. Qd8+ {[%clk 00:13:35]}
{[%emt 00:00:16]} Kf7 {[%clk 00:10:22]} {[%emt 00:00:03]} 34. Qd7+ {[%clk
00:13:37]} {[%emt 00:00:02]} Kg6 {[%clk 00:10:14]} {[%emt 00:00:13]} 35. Qg4+
{[%clk 00:13:40]} {[%emt 00:00:03]} Kh6 {[%clk 00:10:11]} {[%emt 00:00:09]} 36.
Qh4+ {[%clk 00:13:34]} {[%emt 00:00:10]} 1/2-1/2

[Event "MCR rapid mládeže 2023 U16"]
[Site "Harachov, Czech Republic"]
[Date "2023.09.09"]
[Round "1.26"]
[White "Barteckova, Nikol"]
[Black "Slava, Vitalina"]
[Result "1-0"]
[TimeControl "20min+5s/move"]
[WhiteElo "1246"]
[BlackElo "1163"]

1. e4 {[%clk 00:20:08]} {[%emt 00:00:01]} e5 {[%clk 00:20:09]} {[%emt
00:00:02]} 2. Nc3 {[%clk 00:20:11]} {[%emt 00:00:01]} Nc6 {[%clk 00:20:10]}
{[%emt 00:00:04]} 3. Bc4 {[%clk 00:20:11]} {[%emt 00:00:05]} Nf6 {[%clk
00:20:12]} {[%emt 00:00:03]} 4. Nf3 {[%clk 00:16:56]} {[%emt 00:03:20]} Bc5
{[%clk 00:20:07]} {[%emt 00:00:09]} 5. O-O {[%clk 00:16:44]} {[%emt 00:00:17]}
O-O {[%clk 00:19:50]} {[%emt 00:00:22]} 6. d3 {[%clk 00:15:06]} {[%emt
00:01:44]} Bb4 {[%clk 00:19:41]} {[%emt 00:00:14]} 7. a3 {[%clk 00:15:07]}
{[%emt 00:00:03]} Bxc3 {[%clk 00:19:43]} {[%emt 00:00:03]} 8. bxc3 {[%clk
00:15:11]} {[%emt 00:00:02]} d6 {[%clk 00:19:42]} {[%emt 00:00:06]} 9. Bg5
{[%clk 00:15:01]} {[%emt 00:00:14]} h6 {[%clk 00:19:34]} {[%emt 00:00:13]} 10.
Bh4 {[%clk 00:14:57]} {[%emt 00:00:09]} Qe7 {[%clk 00:19:20]} {[%emt 00:00:19]}
11. h3 {[%clk 00:14:38]} {[%emt 00:00:25]} Be6 {[%clk 00:19:03]} {[%emt
00:00:21]} 12. Bb3 {[%clk 00:14:35]} {[%emt 00:00:09]} Bxb3 {[%clk 00:18:24]}
{[%emt 00:00:44]} 13. cxb3 {[%clk 00:14:38]} {[%emt 00:00:01]} Qe6 {[%clk
00:18:26]} {[%emt 00:00:04]} 14. Rb1 {[%clk 00:14:15]} {[%emt 00:00:28]} d5
{[%clk 00:18:13]} {[%emt 00:00:17]} 15. Bxf6 {[%clk 00:13:21]} {[%emt
00:01:00]} Qxf6 {[%clk 00:18:13]} {[%emt 00:00:05]} 16. exd5 {[%clk 00:13:24]}
{[%emt 00:00:02]} Ne7 {[%clk 00:18:00]} {[%emt 00:00:17]} 17. c4 {[%clk
00:13:27]} {[%emt 00:00:03]} c6 {[%clk 00:17:55]} {[%emt 00:00:10]} 18. Re1
{[%clk 00:13:23]} {[%emt 00:00:09]} cxd5 {[%clk 00:17:38]} {[%emt 00:00:23]} 19.
Nxe5 {[%clk 00:13:03]} {[%emt 00:00:24]} dxc4 {[%clk 00:17:22]} {[%emt
00:00:20]} 20. Nd7 {[%clk 00:12:55]} {[%emt 00:00:13]} Qd6 {[%clk 00:16:33]}
{[%emt 00:00:54]} 21. Nxf8 {[%clk 00:12:57]} {[%emt 00:00:04]} Rxf8 {[%clk
00:16:25]} {[%emt 00:00:13]} 22. dxc4 {[%clk 00:12:59]} {[%emt 00:00:03]} Qxd1
{[%clk 00:16:10]} {[%emt 00:00:20]} 23. Rbxd1 {[%clk 00:13:03]} {[%emt
00:00:01]} Nf5 {[%clk 00:15:46]} {[%emt 00:00:28]} 24. Rd7 {[%clk 00:12:59]}
{[%emt 00:00:08]} Rb8 {[%clk 00:15:41]} {[%emt 00:00:12]} 25. g4 {[%clk
00:12:29]} {[%emt 00:00:35]} Nh4 {[%clk 00:15:21]} {[%emt 00:00:25]} 26. Ree7
{[%clk 00:12:28]} {[%emt 00:00:07]} Ng6 {[%clk 00:14:20]} {[%emt 00:01:02]} 27.
Rxf7 {[%clk 00:10:58]} {[%emt 00:01:37]} Ne5 {[%clk 00:14:03]} {[%emt
00:00:22]} 28. Rxg7+ {[%clk 00:10:58]} {[%emt 00:00:06]} Kf8 {[%clk 00:14:00]}
{[%emt 00:00:06]} 29. Rxb7 {[%clk 00:10:58]} {[%emt 00:00:07]} Rd8 {[%clk
00:13:40]} {[%emt 00:00:18]} 30. Rh7 {[%clk 00:10:45]} {[%emt 00:00:25]} Kg8
{[%clk 00:13:25]} {[%emt 00:00:19]} 31. Rhe7 {[%clk 00:10:20]} {[%emt
00:00:29]} Nf3+ {[%clk 00:13:06]} {[%emt 00:00:25]} 32. Kg2 {[%clk 00:10:22]}
{[%emt 00:00:04]} Ng5 {[%clk 00:12:58]} {[%emt 00:00:12]} 33. h4 {[%clk
00:10:21]} {[%emt 00:00:07]} Ne4 {[%clk 00:12:07]} {[%emt 00:00:53]} 34. Rxe4
{[%clk 00:10:24]} {[%emt 00:00:05]} Ra8 {[%clk 00:11:59]} {[%emt 00:00:13]} 35.
Ree7 {[%clk 00:10:24]} {[%emt 00:00:04]} Rf8 {[%clk 00:11:43]} {[%emt
00:00:19]} 36. Rg7+ {[%clk 00:10:27]} {[%emt 00:00:05]} Kh8 {[%clk 00:11:34]}
{[%emt 00:00:12]} 37. Rh7+ {[%clk 00:10:30]} {[%emt 00:00:03]} Kg8 {[%clk
00:11:31]} {[%emt 00:00:08]} 38. Rbg7# {[%clk 00:10:33]} {[%emt 00:00:02]} 1-0